Cogmind - Beta 13 @@@ ROGUE MODE // 2024.04.17 @ 02:01:13 Player: Copyrite Result: Self-destructed Performance ------------- Evolutions (1) 500 Regions Visited (2) 400 Robots Destroyed (16) 80 Value Destroyed (322) 322 Prototype IDs (2) 40 Alien Tech Used (0) 0 Bonus (0) 0 TOTAL SCORE: 1342 Bonus ------- None Cogmind --------- Core Integrity 338/400 Matter 224/300 Energy 100/100 System Corruption 0% Temperature Cool (0) Movement Flying (29) Location -9/Materials Parts ------- > --- POWER (1) -------- (None) > --- PROPULSION (3) --- VTOL Module VTOL Module VTOL Module > --- UTILITY (3) ------ Sensor Array Improved Signal Interpreter Hacking Suite > --- WEAPON (2) ------- Autogun Maul > --- INVENTORY (5) ---- VTOL Module Visual Processing Unit Improved Utility Shielding Light Armor Plating Autogun Peak State ------------ > --- POWER ------------ Light Ion Engine > --- PROPULSION ------- VTOL Module VTOL Module VTOL Module > --- UTILITY ---------- Sensor Array Improved Signal Interpreter Hacking Suite > --- WEAPON ----------- Autogun Autogun > --- INVENTORY -------- VTOL Module Visual Processing Unit Improved Utility Shielding Light Armor Plating Maul [Rating: 19] Favorites ----------- Power Light Ion Engine Engine Light Ion Engine Propulsion VTOL Module Wheel Wheel Flight Unit VTOL Module Utility Small Storage Unit Device Sensor Array Storage Small Storage Unit Processor Improved Signal Interpreter Hackware Hacking Suite Protection Light Armor Plating Weapon Light Assault Rifle Energy Gun Small Laser Ballistic Gun Light Assault Rifle Impact Weapon Maul Build | -11 -10 -9 ------- Run | Yrd Mat Mat Slots Evolved 2 | . . 2 Power . | . . . Propulsion 1 | . . 1 Utility 1 | . . 1 Weapon . | . . . Parts Attached 26 | 6 12 8 Power 4 | 1 2 1 Engine 4 | 1 2 1 Core . | . . . Reactor . | . . . Propulsion 7 | 2 4 1 Treads . | . . . Leg . | . . . Wheel 4 | 2 2 . Hover . | . . . Flight 3 | . 2 1 Utility 8 | 1 4 3 Device 2 | . 1 1 Storage 1 | 1 . . Processor 2 | . . 2 Hackware 1 | . 1 . Protection 2 | . 2 . Artifact . | . . . Weapon 7 | 2 2 3 Energy Gun 2 | . 2 . Energy Cannon . | . . . Ballistic Gun 4 | 2 . 2 Ballistic Cannon . | . . . Launcher . | . . . Special Weapon . | . . . Impact Weapon 1 | . . 1 Slashing Weapon . | . . . Piercing Weapon . | . . . Special Melee Weapon . | . . . Unidentified Prototypes . | . . . Parts Lost 6 | . 5 1 Power 3 | . 2 1 Propulsion 1 | . 1 . Utility 1 | . 1 . Weapon 1 | . 1 . Highest Loss Streak 2 | . 2 1 To Critical Strikes 1 | . 1 . Average Slot Usage (%) 88 | . 84 95 Engine 12 | . 13 11 Wheel 12 | . 19 . Flight 16 | . 6 33 Device 4 | . . 11 Storage 6 | . 10 . Processor 2 | . . 6 Hackware 5 | . 2 11 Protection 6 | . 6 4 Energy Gun 6 | . 6 4 Ballistic Gun 15 | . 17 11 Naked Turns . | . . . Heaviest Build 13 | 10 13 10 Greatest Support 32 | 20 32 12 Greatest Overweight (x) 1 | . 1 . Average Overweight (x) . | . . . Largest Inventory Capacity 8 | 8 8 5 Average Capacity 6 | 7 7 5 Most Carried 8 | 6 8 5 Average Carried 5 | 3 6 4 Final Capacity 8 | 8 5 5 Final Carried 6 | 6 5 5 Class Distribution -------------------- 48% | Mutant 43% | Sprinter 8% | Scavenger-Sprinter Dominant Class ---------------- Mutant | -10/Materials Sprinter | -9/Materials Resources | -11 -10 -9 ----------- Run | Yrd Mat Mat Matter Collected 470 | 260 187 23 Remotely 10 | . 10 . Salvage Created 453 | . 430 23 Parts 40 | . 37 3 Haulers Intercepted . | . . . Recyclers Shooed 1 | . 1 . Parts Field Recycled . | . . . Retrieved Matter . | . . . Parts Self-Destructed . | . . . Prevented . | . . . Kills | -11 -10 -9 ------- Run | Yrd Mat Mat Combat Hostiles Destroyed 11 | . 11 . Guns 11 | . 11 . Classes Destroyed 6 | . 6 . Worker 1 | . 1 . Recycler 1 | . 1 . Operator 1 | . 1 . Watcher 2 | . 1 1 Swarmer 5 | . 5 . Grunt 6 | . 6 . Best Kill Streak 6 | . 6 1 Combat Bots Only 5 | . 5 . Max Kills in Single Turn 1 | . 1 1 Gunslinging . | . . . Exploded . | . . . Melee . | . . . Uniques/NPCs Destroyed . | . . . Combat | -11 -10 -9 -------- Run | Yrd Mat Mat Hostile Shots Fired 129 | . 99 30 Missed 50 | . 34 16 Damage Taken 770 | . 611 159 Core 180 | . 118 62 Absorbed by Shields . | . . . Core Remaining (%) 76 | 100 52 . Volleys Fired 62 | . 57 5 Largest 2 | . 2 2 Hottest 80 | . 80 80 Shots Fired 105 | . 97 8 Gun 105 | . 97 8 Cannon . | . . . Launcher . | . . . Special . | . . . Kinetic 93 | . 87 6 Thermal 12 | . 10 2 Explosive . | . . . Electromagnetic . | . . . Robot Hit Streak 7 | . 7 7 Robot Miss Streak 4 | . 4 1 Penetration Max . | . . . Secondary Targets 3 | . 3 . Max Gunslinging Chain 1 | . 1 . Shots Hit Robots 64 | . 58 6 Core Hits 31 | . 30 1 Critical Kills . | . . . Critical Parts Destroyed 1 | . 1 . Critical Strikes 1 | . 1 . Destroy 1 | . 1 . Melee Attacks 4 | . . 4 Impact 4 | . . 4 Slashing . | . . . Piercing . | . . . Sneak Attacks . | . . . Combat Hostiles . | . . . Follow-up Attacks . | . . . Damage Inflicted 623 | . 538 85 Guns 623 | . 538 85 Cannons . | . . . Explosions . | . . . Melee . | . . . Ramming . | . . . Kinetic 553 | . 480 73 Thermal 70 | . 58 12 Explosive . | . . . Electromagnetic . | . . . Impact . | . . . Slashing . | . . . Piercing . | . . . Highest Corruption . | . . . Average Corruption . | . . . Corruption Purged . | . . . Corruption Blocked . | . . . Overload Shots . | . . . Overflow Damage . | . . . Projectiles . | . . . Explosions . | . . . Melee . | . . . Knockbacks . | . . . Impact . | . . . Kinetic . | . . . Secondary . | . . . Self-Inflicted Damage . | . . . Shots . | . . . Rammed . | . . . Targets Rammed . | . . . Kicked . | . . . Crushed . | . . . Highest Temperature 66 | . 66 27 Average Temperature 15 | . 16 9 Received Heat Transfer 204 | . 156 48 Siege Activations . | . . . Robots Corrupted . | . . . Combat Hostiles . | . . . Parts Fried . | . . . Impact Corruptions . | . . . Robots Melted . | . . . Combat Hostiles . | . . . Parts Melted . | . . . Heat Transferred 150 | . 125 25 Parts Sabotaged . | . . . Parts Stolen . | . . . Parts Stripped . | . . . Power Chain Reactions . | . . . Alert | -11 -10 -9 ------- Run | Yrd Mat Mat Peak Influence 377 | . 377 329 Initial 14 | . . 14 Average 176 | . 216 146 Maximum Alert Level 1 | . 1 1 Low Security (%) 49 | 100 32 67 Level 1 50 | . 67 32 Level 2 . | . . . Level 3 . | . . . Level 4 . | . . . Level 5 . | . . . High Security . | . . . Max Security . | . . . Squads Dispatched 2 | . 1 1 Investigation . | . . . Extermination . | . . . Reinforcement 2 | . 1 1 Assault . | . . . Garrison . | . . . Intercept . | . . . Searches Triggered . | . . . Construction Impeded . | . . . Haulers Reinforced . | . . . Active Scanning Responses . | . . . Cargo Convoy Interrupts . | . . . Stealth | -11 -10 -9 --------- Run | Yrd Mat Mat Distress Signals 2 | . 2 . Communications Jammed . | . . . Distress Signals . | . . . Times Spotted 45 | . 24 21 Peak Tracking Total 11 | . 11 10 Tactical Retreats 6 | . 1 5 Traps | -11 -10 -9 ------- Run | Yrd Mat Mat Traps Triggered . | . . . Indirectly . | . . . Trap Hack Attempts . | . . . Triggered . | . . . Disarmed . | . . . Reprogrammed . | . . . Reused . | . . . Traps Extracted . | . . . Installed . | . . . Triggered . | . . . Machines | -11 -10 -9 ---------- Run | Yrd Mat Mat Machines Disabled . | . . . Max in Single Turn . | . . . Machines Repaired . | . . . Machines Dismantled . | . . . Machines Sabotaged . | . . . Overloaded Fab Kills . | . . . Hacking | -11 -10 -9 --------- Run | Yrd Mat Mat Machines Accessed 13 | . 5 8 Terminals 13 | . 5 8 Fabricators . | . . . Repair Stations . | . . . Recycling Units . | . . . Scanalyzers . | . . . Garrison Access . | . . . Total Hacks 43 | . 18 25 Successful 27 | . 12 15 Failed 15 | . 5 10 Catastrophic 1 | . . 1 Database Lockouts 1 | . 1 . Manual 37 | . 20 17 Terminals 43 | . 18 25 Fabricators . | . . . Repair Stations . | . . . Recycling Units . | . . . Scanalyzers . | . . . Garrison Access . | . . . Terminal Hacks 11 | . 5 6 Robot Analysis 3 | . 2 1 Prototype ID Bank 1 | . . 1 Branch Access Points 1 | . 1 . Terminal Index 1 | . . 1 Alert Level 2 | . 1 1 Unreport Threat 1 | . 1 . Locate Traps 1 | . . 1 Zone Layout 1 | . . 1 Fabricator Hacks . | . . . Repair Station Hacks . | . . . Recycling Unit Hacks . | . . . Scanalyzer . | . . . Garrison Access Hacks . | . . . Unauthorized Hacks 16 | . 7 9 Terminals 16 | . 7 9 Assimilate 2 | . 1 1 Botnet 12 | . 5 7 Operators 2 | . 1 1 Fabricators . | . . . Repair Stations . | . . . Recycling Units . | . . . Scanalyzers . | . . . Garrison Access . | . . . Data Cores Recovered . | . . . Used . | . . . Hacking Detections 13 | . 5 8 Full Trace Events 1 | . . 1 Feedback Events . | . . . Feedback Blocked . | . . . Robot Schematics Acquired . | . . . Robots Built . | . . . Authchips . | . . . Time . | . . . Total Robot Build Rating . | . . . Part Schematics Acquired . | . . . Parts Built . | . . . Authchips . | . . . Time . | . . . Total Part Build Rating . | . . . Parts Repaired . | . . . Time . | . . . Parts Recycled . | . . . Recycled Matter . | . . . Retrieved Matter . | . . . Retrieved Components . | . . . Parts Scanalyzed . | . . . Part Schematics Acquired . | . . . Parts Damaged . | . . . Bothacking | -11 -10 -9 ------------ Run | Yrd Mat Mat Used RIF Installer . | . . . Robots Hacked . | . . . Non-combat . | . . . Combat . | . . . Robot Hacks Applied . | . . . Relay Couplers Released . | . . . Fabnet Peak Effective % . | . . . Robots Rewired . | . . . Allies Hacked . | . . . Hacks Repelled . | . . . Allies | -11 -10 -9 -------- Run | Yrd Mat Mat Total Allies . | . . . Largest Group . | . . . Highest-Rated Group . | . . . Highest-Rated Ally . | . . . Total Orders . | . . . Ally Attacks . | . . . Total Damage . | . . . Kills . | . . . Allies Corrupted . | . . . Allies Melted . | . . . Intel | -11 -10 -9 ------- Run | Yrd Mat Mat Robot Analysis Total 3 | . 2 1 Derelict Logs Recovered . | . . . Drone Launches . | . . . Drone Recoveries . | . . . Exploration | -11 -10 -9 ------------- Run | Yrd Mat Mat Turns Passed 703 | 51 411 241 Spaces Moved 956 | 47 398 511 Core 3 | 3 . . Treads . | . . . Legs . | . . . Wheels 225 | 44 181 . Hover . | . . . Flight 728 | . 217 511 Fastest Speed 29 | 50 32 29 Average Speed 43 | 78 58 29 Slowest Speed 100 | 80 100 29 Overloaded Moves . | . . . Propulsion Burnouts . | . . . Robots Hopped 24 | . 8 16 Cave-ins Triggered . | . . . Exploration Rate (%) 38 | 3 61 50 Regions Visited 2 Branch Regions . Pre-discovered Areas . | . . . Known Exits Taken . | . . . Unknown Exits Taken 2 | 1 1 . Scrap Searched . | . . . Spaces Dug 4 | . . 4 Terrain Destroyed 4 | . . 4 Melee 4 | . . 4 Projectile . | . . . AOE . | . . . Terrain Rammed . | . . . Walls Destroyed . | . . . Machines Disabled . | . . . Actions | -11 -10 -9 --------- Run | Yrd Mat Mat Total 1121 | 58 491 572 Wait 58 | . 6 52 Move 908 | 46 382 480 Hop 22 | . 7 15 Pick Up 23 | 6 13 4 Fast Attach 13 | 6 5 2 Attach 5 | . 3 2 Detach . | . . . Swap 8 | . 4 4 Drop 18 | . 14 4 Fire 62 | . 57 5 Melee 4 | . . 4 Ram . | . . . Kick . | . . . Crush . | . . . Escape Stasis . | . . . Rewire . | . . . Trap . | . . . Miscellaneous . | . . . Route ------- -11/Scrapyard -10/Materials (discovered 3 exits: *Mat / *Min x2) -9/Materials (discovered 2 exits: *Mat x2) History --------- Turn | Location | Event 7 | -11/Scrapyard | Discovered new exit (range 16) 52 | -11/Scrapyard | Entered Materials 317 | -10/Materials | Build established: Mutant 333 | -10/Materials | Discovered new exit (range 10) 440 | -10/Materials | Central database locked down 442 | -10/Materials | Identified exit to Mines 458 | -10/Materials | Discovered new exit (range 9) 463 | -10/Materials | Entered another Materials area 463 | -9/Materials | Evolved 2 slots: Propulsion x1, Utility x1 522 | -9/Materials | Discovered new exit (range 16) 607 | -9/Materials | Discovered new exit (range 3) 608 | -9/Materials | Identified exit to Materials 704 | -9/Materials | Self-destructed Last Messages --------------- Awaiting botnet instructions. Connecting with Terminal... >>Trojan(Botnet) Trojan loaded successfully. Testing... Terminal linked with 6 systems. Awaiting botnet instructions. O-16 Technician: "IFF HANDSHAKE FAILED. SECURING TERMINAL." Connecting with Terminal... >>Trojan(Assimilate) Trojan loaded successfully. Testing... System interface override in place. ALERT: Hostiles spotted, dispatching reinforcements to Terminal M004. T-07 Excavator is excavating. Acquired Maul. S-10 Pest destroyed. Lgt. Ion Engine destroyed. Map ----- +----------------------------------------------------+ | #???# # ## #????????????????????? | | #???# / # #####+########### #??????????? | | #???# + #??????????? | | ##+#???# # ## #??????????? | | #??????# """ # ## #??????????? | | #??????# """ ## ### ?????????? | | #?o????# """ ## ###/##+##+###########?????????? | | +??????# ## + #???????????????????? | | #??????# ""## # #???????????????????? | | #??????# Y"## # / #???????????????????? | | #??????# ""## # #???????????????????? | | #??????# ## ###########???????????????????? | | #??????#####"## #?????????????????????????????? | | #??????#####"## #?????????????????????????????? | | ##??????# # #?????????????????????????????? | | ????????# #g g#?????????????????????????????? | | ????????# / # #?????????????????????????????? | | ????????# + +?????????????????????????????? | | ????????# # #?????????????????????????????? | | ????????# + #?????????????????????????????? | | ????????#########g#######????????????????????????? | | ???????????# /#????????????????????????? | | ???????????# """ """"" #????????????????????????? | | ???????????# "R """""%=#????????????????????????? | | ???????????# """ """""s ###??????????????????????? | | ???????????# ss@#??????????????????????? | | ???????????################??????????????????????? | | ?????????????????????????????????????????????????? | | ?????????????????????????????????????????????????? | | ?????????????????????????????????????????????????? | | ?????????????????????????????????????????????????? | | ?????????????????????????????????????????????????? | | ?????????????????????????????????????????????????? | | ?????????????????????????????????????????????????? | | ?????????????????????????????????????????????????? | | ???????????????????????????????????????????????? | | ???????????????????????????????????????????????? | | #??????????????????????????????????????????????? | | #??????????????????????????????????????????????? | | +??????????????????????????????????????????????? | | ???????????????????????????????????????????????? | | ????????????????????????????????????????????????? | | ?????????????????????????????????????????????????? | | ?????????????????????????????????????????????????? | | +??????????????????????????????????????????????? | | #??????????????????????????????????????????????? | | #??????????????????????????????????????????????? | | ##???????????????????????????????????????????????? | | ?????????????????? ????????????????????????????? | | ?????????????????? ????????????????????????????? | +----------------------------------------------------+ Best States ------------- Heat Dissipation 28 Energy Generation 10 Energy Capacity 125 Matter Stores 300 Matter Capacity 300 Sight Range 16 Robot Scan Range 14 Terrain Scan Density 10 Armor Coverage 150 Evasion (%) 64 Offensive Hacking 10 Item Schematics ----------------- None Robot Schematics ------------------ None Fabricated ------------ Nothing Alien Tech Used ----------------- None Achievements -------------- Armchair Analyst Challenges ------------ None Game ------ Seed NeutrinoGhostCoupler Manual? 0 Play Time 00:21:54 Cumulative 28.9 hours Start 2024.04.17 @ 01:41:38 End 2024.04.17 @ 02:01:13 Sessions 1 Manual Loads 0 Difficulty Rogue Special Mode None Game No. 53 Rogue 53 Adventurer 0 Explorer 0 Win Type - Total 0 Types 0/0/0/0/0/0/0/0/0 Lore% 24 Gallery% 28 Achievement% 31 Wizard Run 0 Options --------- Layout 1 ASCII 0 Keyboard 0 Movement Numpad Keybinds 0 Fullscreen 1 Font 32/SmallcapsGlow Map View 50x35 Zoom Use 0% Tactical HUD 0 Map Filters NONE Filters NONE Steam 1 RUN: 82a939e3-2920-4a6f-86d6-d7b85732f9ba